bitfinex/quotes_ETHUSD_20260304
["timestamp","ask_amount","ask_price","bid_price","bid_amount"]
[1772599185147,1.27962327,1953.7,1953.2,2.23086301]
[1772599185569,5.45828805,1953.8,1953.2,2.23086301]
[1772599185847,5.4582668,1953.8,1953.2,2.23086301]
[1772599186276,2.3438308,1953.8,1953.2,2.23086301]
[1772599186456,3.62339189,1953.8,1953.2,2.23086301]
[1772599186874,0.001,1953.9,1953.4,2.23086301]
[1772599187051,1.28050383,1953.9,1953.4,2.23086301]
[1772599187676,3.62433463,1953.9,1953.4,2.23086301]
[1772599188678,2.13082402,1953.8,1953.4,2.23086301]
[1772599190376,2.13082402,1953.6,1953.2,2.18883715]
[1772599190678,2.13082402,1953.4,1952.9,2.18883715]
[1772599190877,1.27962327,1953.7,1952.9,2.18883715]
[1772599190878,3.41042103,1953.8,1952.9,2.18883715]
[1772599191082,2.13082402,1953.7,1952.9,2.18883715]
[1772599191388,1.28053916,1953.9,1953.0,2.18883715]
[1772599191552,2.13082402,1953.8,1953.0,2.18883715]
[1772599191753,2.13082402,1954.3,1953.1,2.18883715]
[1772599192208,0.001,1954.5,1953.3,1.83487412]
[1772599192377,0.001,1954.5,1953.7,2.18883715]
[1772599192681,0.001,1954.5,1953.7,3.87183715]
[1772599192682,2.13082402,1954.4,1953.7,3.87183715]
[1772599192876,2.13082402,1954.4,1953.8,2.18883715]
[1772599193084,0.001,1954.5,1953.8,2.18883715]
[1772599193289,1.27844541,1955.5,1954.6,2.18883715]
[1772599193454,2.13082402,1955.3,1954.6,2.18883715]
[1772599193648,5.11378164,1955.7,1954.6,2.18883715]
[1772599193649,2.13082402,1955.7,1954.6,2.18883715]
[1772599193950,1.27818966,1955.9,1954.6,2.18883715]
[1772599194150,1.27925569,1955.8,1954.6,2.18883715]
[1772599194375,0.001,1955.8,1954.6,2.18883715]
[1772599194577,0.001,1955.8,1954.8,2.18883715]
[1772599194766,1.83487412,1955.6,1954.8,2.18883715]
[1772599194966,3.96569814,1955.6,1954.8,2.18883715]
[1772599197659,1.27844541,1955.5,1954.8,3.4676945]
[1772599198384,1.27844541,1955.5,1954.8,2.18883715]
[1772599198583,1.27844541,1955.5,1954.2,2.5773033]
[1772599198584,2.13082402,1955.2,1954.2,6.04542376]
[1772599198754,1.83487412,1955.0,1954.3,2.18883715]
[1772599199378,3.96569814,1955.0,1954.3,2.18883715]
[1772599200276,2.13082402,1955.3,1954.4,1.27916496]
[1772599200478,7.2454717,1955.2,1954.4,1.27916496]
[1772599200679,7.2454717,1955.2,1954.0,6.04553158]
[1772599200680,3.96569814,1954.9,1954.0,6.04553158]
[1772599200888,3.96569814,1954.9,1954.1,3.87683715]
[1772599201256,1.83487412,1954.4,1953.6,3.4685068]
[1772599201464,3.96569814,1954.4,1953.6,3.4685068]
[1772599201661,1.83487412,1954.5,1953.7,2.18883715]
[1772599201886,3.96569814,1954.7,1953.7,2.18883715]
[1772599202091,3.40942591,1955.3,1953.7,2.18883715]
[1772599202267,2.13082402,1955.2,1954.2,2.18883715]
[1772599202468,2.13082402,1955.0,1954.1,1.689]
[1772599202792,2.13082402,1955.0,1954.0,1.69]
[1772599204499,3.40966181,1954.9,1954.0,2.96936374]
[1772599204892,3.40966181,1954.9,1954.0,5.15820089]
[1772599205304,1.27882137,1955.0,1954.1,2.18883715]
[1772599206001,1.27873949,1955.1,1954.1,2.18883715]
[1772599206416,1.27873949,1955.1,1954.2,3.46813302]
[1772599207004,3.40956351,1955.1,1954.2,2.18883715]
[1772599207181,3.40956351,1955.1,1954.1,0.0011]
[1772599207182,3.96569814,1954.9,1954.1,0.0011]
[1772599207381,3.96669814,1954.9,1954.1,1.28044564]
[1772599208410,3.96669814,1954.9,1954.1,0.0011]
[1772599208411,1.27890321,1954.8,1954.1,0.0011]
[1772599208710,1.31004616,1954.6,1954.1,0.0011]
[1772599209310,2.13082402,1954.7,1954.1,0.0011]
[1772599210186,3.44087018,1954.4,1954.0,0.0011]
[1772599210593,1.27903407,1954.6,1954.0,0.0011]
[1772599211596,3.40983419,1954.7,1954.0,0.0011]
[1772599214743,1.27894019,1954.8,1954.0,2.18993715]
[1772599215516,2.13082402,1954.8,1954.1,1.27936134]
[1772599215891,2.13082402,1954.8,1954.0,3.46934064]
[1772599216213,3.44087018,1954.6,1954.0,0.0011]
[1772599217599,1.27909951,1954.5,1954.0,0.0011]
[1772599218190,3.3929732,1954.5,1954.0,0.0011]
[1772599219225,2.11387369,1954.1,1953.8,0.0011]
[1772599219407,1.31004616,1954.2,1953.5,3.59070307]
[1772599219727,1.27936134,1954.1,1953.5,3.59070307]
[1772599219922,1.27919536,1954.4,1954.1,0.0011]
[1772599221021,4.70792267,1954.4,1954.1,0.0011]
[1772599222001,2.11868115,1954.3,1954.0,0.0011]
[1772599222191,2.11868115,1954.1,1953.5,2.26148498]
[1772599222509,2.11868115,1954.1,1953.5,0.0011]
[1772599222820,2.11868115,1954.1,1953.5,1.28084748]
[1772599223125,2.11868115,1954.1,1953.5,1.28084525]
[1772599224125,1.27942681,1954.0,1953.5,0.0011]
[1772599225123,3.39787874,1954.4,1953.5,2.26148498]
[1772599225500,2.11868115,1954.3,1953.5,2.26148498]
[1772599226632,1.27929587,1954.2,1953.6,1.27968877]
[1772599227212,1.27929587,1954.2,1953.6,3.54007375]
[1772599229939,1.27929587,1954.2,1953.6,2.26038498]
[1772599230235,3.42872731,1953.9,1953.5,0.0011]
[1772599230443,3.42872731,1953.7,1953.4,0.0011]
[1772599232231,1.27968877,1953.6,1953.4,0.0011]
[1772599232730,1.27968877,1953.6,1953.5,0.0011]
[1772599232925,4.70838619,1953.7,1953.4,0.0011]
[1772599233238,3.42872731,1953.5,1953.2,0.0011]
[1772599234415,4.70852882,1953.5,1953.2,0.0011]
[1772599234612,2.58972455,1953.7,1953.2,0.0011]
[1772599234818,4.7084057,1953.7,1953.2,0.0011]
[1772599235015,3.39821161,1953.9,1953.2,2.26148498]
[1772599235232,3.42872731,1953.8,1953.2,0.0011]
[1772599235741,2.11868115,1953.7,1953.2,0.0011]
[1772599235910,3.42872731,1953.6,1953.2,0.0011]
[1772599236609,4.70845808,1953.6,1953.2,0.0011]
[1772599239137,4.70641032,1953.6,1953.2,0.0011]
[1772599241138,2.58772917,1953.6,1953.2,0.0011]
[1772599241850,1.27973077,1953.6,1953.2,0.0011]
[1772599243166,7.23717916,1953.7,1953.2,0.0011]
[1772599244064,7.23717916,1953.7,1953.0,3.54046411]
[1772599244065,2.11868115,1953.5,1953.0,3.54046272]
[1772599244356,1.31004616,1953.6,1953.3,0.0011]
[1772599244557,7.23717916,1953.7,1953.3,0.0011]
[1772599244814,0.001,1953.5,1953.3,0.0011]
[1772599246248,0.001,1953.5,1953.0,3.54156272]
[1772599246249,3.42872731,1953.4,1953.0,0.0011]
[1772599246418,2.11868115,1953.1,1952.8,0.0011]
[1772599247249,1.31004616,1953.2,1952.8,0.0011]
[1772599247421,3.42872731,1953.2,1952.8,0.0011]
[1772599247622,2.62109232,1953.5,1952.5,2.96847916]
[1772599247623,2.11868115,1952.9,1952.5,0.0011]
[1772599248150,2.94686558,1953.4,1952.5,2.13247308]
[1772599248354,1.28077221,1953.5,1952.7,2.13137308]
[1772599248732,1.31104616,1953.5,1952.7,2.13137308]
[1772599249064,0.001,1953.5,1952.7,2.13137308]
[1772599249964,1.28075633,1953.5,1952.7,2.13137308]
[1772599250362,1.28075633,1953.5,1952.9,2.13137308]
[1772599250567,2.22002804,1953.5,1952.9,2.13137308]
[1772599250938,2.21902804,1953.3,1952.7,3.41164934]
[1772599251134,1.31004616,1953.2,1952.7,3.41165054]
[1772599251364,1.31004616,1953.2,1952.7,2.13137308]
[1772599251766,1.31004616,1953.2,1952.8,2.13137308]
[1772599252289,1.31004616,1953.2,1952.6,3.41166863]
[1772599252474,2.62109232,1953.5,1952.5,5.12261743]
[1772599252475,0.001,1953.5,1952.7,2.13137308]
[1772599254777,0.001,1953.5,1952.9,2.13137308]
[1772599254948,0.001,1953.5,1953.1,2.13137308]
[1772599257160,2.21902804,1954.1,1953.3,2.13137308]
[1772599257358,3.49843738,1954.1,1953.3,2.13137308]
[1772599257563,0.001,1953.4,1953.3,2.13137308]
[1772599257764,3.49843738,1954.1,1953.3,2.13137308]
[1772599258166,3.49843738,1954.1,1953.3,3.81337308]
[1772599258167,2.21902804,1953.9,1953.3,3.81337308]
[1772599259970,1.31004616,1954.0,1953.4,3.41119288]
[1772599260259,1.27943228,1954.0,1953.4,3.41119288]
[1772599260763,2.21902804,1953.9,1953.2,3.41128185]
[1772599260957,2.21902804,1953.9,1953.2,5.09328185]
[1772599261471,2.21902804,1953.9,1953.2,2.96190877]
[1772599261656,2.21902804,1953.9,1953.3,2.13137308]
[1772599262060,3.49857589,1953.9,1953.3,3.41120853]
[1772599262281,3.49857589,1953.9,1953.3,2.13137308]
[1772599262588,2.21902804,1953.7,1953.0,2.96205869]
[1772599262886,2.21902804,1953.5,1953.0,2.96207371]
[1772599263481,2.21902804,1953.5,1953.0,1.682]
[1772599263693,2.21902804,1953.5,1953.0,2.96207726]
[1772599264194,3.49884622,1953.5,1952.9,5.09247077]
[1772599265466,2.21902804,1953.4,1952.8,1.28017933]
[1772599265661,1.27981818,1953.5,1952.7,0.0011]
[1772599265662,1.31004616,1953.0,1952.7,0.0011]
[1772599265964,1.31004616,1953.0,1952.5,1.28149964]
[1772599266790,1.31004616,1953.0,1952.5,0.0011]
[1772599266791,1.28014747,1952.9,1952.5,0.0011]
[1772599267494,2.59018036,1953.0,1952.5,0.0011]
[1772599267658,4.8092084,1953.0,1952.5,0.0011]
[1772599268895,4.8092084,1953.0,1952.6,0.0011]
[1772599270090,2.21902804,1953.0,1952.6,0.0011]
[1772599270292,1.27991683,1953.3,1952.6,2.13247308]
[1772599270493,2.21902804,1953.2,1952.6,2.13247308]
[1772599270666,2.21902804,1952.9,1952.6,0.0011]
[1772599271077,2.21902804,1952.9,1952.5,0.0011]
[1772599272576,1.28008192,1953.0,1952.5,0.0011]
[1772599272782,2.21902804,1953.0,1952.5,0.0011]
[1772599274704,0.001,1953.4,1952.6,2.13137308]
[1772599274872,0.001,1953.4,1952.5,0.0011]
[1772599274873,0.001,1953.4,1952.8,2.13137308]
[1772599276412,3.50378303,1954.2,1952.9,2.13137308]
[1772599276712,1.28475499,1954.2,1953.0,1.28008192]
[1772599276911,1.28475499,1954.2,1953.1,2.13137308]
[1772599278005,0.001,1954.4,1953.5,2.13137308]
[1772599278171,0.001,1954.4,1953.7,2.08968948]
[1772599278788,0.001,1954.4,1953.9,2.08968948]
[1772599281102,0.001,1954.9,1954.2,2.59059634]
[1772599281293,0.001,1954.9,1954.2,4.72994222]
[1772599281473,0.001,1954.9,1954.2,1.681]
[1772599281474,2.06230003,1954.9,1954.2,1.681]
[1772599281671,0.001,1954.9,1954.2,1.681]
[1772599281874,0.001,1954.9,1954.3,2.13934588]
[1772599282777,0.001,1954.9,1954.2,1.681]
[1772599282979,2.06230003,1954.9,1954.3,1.27923041]
[1772599283419,2.06130003,1954.8,1953.9,1.27942681]
[1772599283705,2.06130003,1954.8,1954.0,3.82034588]
[1772599285509,3.34021357,1954.8,1954.1,1.27936134]
[1772599285808,3.34021357,1954.8,1954.0,5.09972502]
[1772599286774,1.27891354,1954.8,1954.0,3.41872502]
[1772599286969,2.06130003,1954.7,1954.1,1.681]
[1772599287586,1.27903407,1954.6,1954.1,2.96035904]
[1772599287806,1.27903407,1954.6,1954.1,1.681]
[1772599288104,2.06130003,1954.7,1954.1,2.96035651]
[1772599288289,3.34114173,1954.9,1954.2,2.13934588]
[1772599288677,0.001,1954.9,1954.2,2.13934588]
[1772599288876,1.27984493,1954.9,1954.2,2.13934588]
[1772599289888,0.001,1954.9,1954.3,1.27923041]
[1772599290586,0.001,1954.9,1954.4,1.681]
[1772599291186,0.001,1954.9,1954.5,2.13934588]
[1772599291390,5.11434127,1955.3,1954.5,2.13934588]
[1772599291391,2.06130003,1955.3,1954.5,2.13934588]
[1772599292006,2.06130003,1955.3,1954.7,2.13934588]
[1772599292478,3.33988677,1955.3,1954.7,2.13934588]
[1772599292676,2.06130003,1955.3,1954.7,2.13934588]
[1772599293078,3.3397842,1955.5,1954.7,2.13934588]
[1772599293509,0.001,1954.8,1954.7,2.13934588]
[1772599293708,3.3397842,1955.5,1954.7,2.13934588]
[1772599294786,3.3397689,1955.5,1954.8,3.41824909]
[1772599295087,3.3397689,1955.5,1954.5,1.27906253]
[1772599295088,2.06130003,1955.4,1954.5,1.27906253]
[1772599295286,2.06130003,1955.3,1954.6,1.681]
[1772599295502,2.06130003,1955.3,1954.6,3.82034588]
[1772599295679,1.27846887,1955.5,1954.7,2.13934588]
[1772599295680,2.06130003,1955.5,1954.7,2.13934588]
[1772599296809,3.33976757,1955.5,1954.8,1.27890321]
[1772599297014,2.06130003,1955.5,1954.9,2.13934588]
[1772599297182,3.33974588,1955.5,1954.9,2.13934588]
[1772599298421,2.06130003,1955.5,1954.9,2.13934588]
[1772599298714,3.33974786,1955.5,1954.9,2.13934588]
[1772599298909,2.06130003,1955.5,1955.0,1.27877237]
[1772599299411,3.33976264,1955.5,1955.0,1.27877237]
[1772599299614,2.06130003,1955.5,1955.0,1.27877237]
[1772599300783,2.06230003,1955.8,1955.2,1.27864157]
[1772599301017,3.34055493,1955.8,1955.2,1.27864157]
[1772599301212,2.06230003,1955.8,1955.2,3.41798745]
[1772599301418,2.06230003,1955.8,1955.2,5.09898745]
[1772599301915,0.001,1955.8,1955.3,2.13934588]
[1772599302414,1.27926635,1955.8,1955.3,2.13934588]
[1772599302615,1.27926635,1955.8,1955.3,3.82034588]
[1772599302924,2.06230003,1955.8,1955.3,2.95957445]
[1772599304887,0.001,1955.8,1955.3,5.09892033]
[1772599305913,0.001,1955.7,1955.3,5.09892033]
[1772599306914,0.001,1955.7,1955.4,2.13934588]
[1772599307103,0.001,1955.7,1955.3,2.95957445]
[1772599307925,2.06130003,1955.6,1954.9,2.13934588]
[1772599308133,2.06130003,1955.6,1955.0,1.681]
[1772599308846,2.0335851,1955.3,1954.8,0.0011]
[1772599309139,3.31222667,1955.2,1954.8,0.0011]
[1772599309857,2.0335851,1955.1,1954.8,0.0011]
[1772599311127,7.14789743,1955.3,1954.8,0.0011]
[1772599311928,2.0335851,1955.2,1954.8,0.0011]
[1772599313800,3.31226212,1955.2,1954.8,0.0011]
[1772599316535,2.0335851,1955.1,1954.8,0.0011]
[1772599318054,2.0335851,1955.1,1954.9,0.0011]
[1772599318427,3.31232439,1955.1,1954.9,0.0011]
[1772599318925,2.0335851,1955.1,1954.9,0.0011]
[1772599319124,3.31229273,1955.1,1954.9,0.0011]
[1772599319321,2.0335851,1955.0,1954.5,0.0011]
[1772599319554,2.0335851,1955.0,1954.3,1.88856398]
[1772599319555,2.0335851,1955.0,1954.1,5.75848021]
[1772599319740,2.0335851,1955.0,1954.1,3.16788387]
[1772599319949,2.0335851,1955.0,1954.2,1.683]
[1772599320467,2.0335851,1955.0,1954.4,3.16772894]
[1772599320628,1.662,1955.4,1954.4,3.16772894]
[1772599320629,2.0335851,1955.2,1954.5,1.88856398]
[1772599323049,3.31222987,1955.2,1954.6,1.27903407]
[1772599323252,3.31222987,1955.2,1954.6,3.16759805]
[1772599323560,3.31222821,1955.2,1954.6,3.16759805]
[1772599323735,6.95128182,1955.5,1954.7,1.88856398]
[1772599323736,3.31212962,1955.4,1954.7,1.88856398]
[1772599323939,3.31212962,1955.4,1954.8,1.684]
[1772599324144,3.31212962,1955.4,1954.9,1.88856398]
[1772599324338,2.0335851,1955.4,1954.9,1.88856398]
[1772599324549,0.001,1955.5,1954.9,1.88856398]
[1772599325274,2.0335851,1955.4,1954.6,5.75856398]
[1772599325439,2.0335851,1955.4,1954.7,3.57256398]
[1772599327457,2.0335851,1955.4,1954.8,3.16746719]
[1772599327641,1.27947879,1955.5,1954.9,1.88856398]
[1772599327842,0.001,1955.5,1954.9,1.88856398]
[1772599328027,1.27945236,1955.5,1954.9,1.88856398]
[1772599328456,3.31303746,1955.5,1954.9,1.88856398]
[1772599328642,3.31303746,1955.5,1954.9,1.75754955]
[1772599328846,3.31303746,1955.5,1954.9,3.44354955]
[1772599329634,3.31303746,1955.5,1954.9,4.72235163]
[1772599329635,2.0335851,1955.4,1954.9,4.72235163]
[1772599330235,0.001,1955.3,1954.9,4.72235163]
[1772599330968,2.0345851,1955.3,1954.8,1.687]
[1772599331131,2.0345851,1955.3,1954.9,1.88856398]
[1772599331132,0.001,1955.3,1954.9,1.88856398]
[1772599332265,0.001,1955.3,1955.0,3.16733635]
[1772599332460,0.001,1955.5,1955.1,1.88856398]
[1772599333362,0.001,1955.8,1955.1,1.88856398]
[1772599333536,2.0335851,1956.0,1955.1,1.88856398]
[1772599333537,3.3126226,1956.2,1955.3,1.88856398]
[1772599333741,3.3126226,1956.2,1955.5,1.88856398]
[1772599334338,2.0335851,1956.1,1955.6,1.27838003]
[1772599335051,2.0335851,1956.1,1955.5,1.27839414]
[1772599335253,2.0335851,1956.0,1955.4,1.69]
[1772599335944,2.0335851,1956.0,1955.4,3.57856398]
[1772599336272,1.27818395,1955.9,1955.4,3.57856398]
[1772599336441,1.27818395,1955.9,1955.4,4.8570688]
[1772599337268,3.31175072,1956.0,1955.4,4.8570688]
[1772599337570,3.31175072,1956.0,1955.4,4.85707089]
[1772599338364,1.83850988,1955.9,1955.4,3.57856398]
[1772599338550,1.83850988,1955.9,1955.4,1.69]
[1772599339169,1.83850988,1955.8,1955.1,1.691]
[1772599339367,1.83850988,1955.8,1955.0,3.10987578]
[1772599339567,1.83850988,1955.6,1955.1,1.691]
[1772599340400,1.89514998,1955.4,1955.1,1.691]
[1772599340871,3.17366385,1955.4,1955.1,1.691]
[1772599341101,3.17357363,1955.6,1955.1,2.96967811]
[1772599341254,3.17357363,1955.6,1955.1,1.691]
[1772599341702,1.89514998,1955.8,1955.2,1.93578982]
[1772599341976,1.89514998,1955.7,1955.2,1.93578982]
[1772599342291,1.89514998,1955.7,1955.5,0.0011]
[1772599342575,3.17353001,1955.6,1955.1,1.691]
[1772599342768,1.89514998,1955.5,1955.4,0.0011]
[1772599343074,1.89514998,1955.5,1955.2,0.0011]
[1772599343379,1.27838003,1955.6,1955.2,0.0011]
[1772599343676,3.17353001,1955.6,1955.2,0.0011]
[1772599345277,1.89514998,1955.5,1955.2,0.0011]
[1772599346151,1.89514998,1955.4,1955.2,0.0011]
[1772599346353,1.89514998,1955.4,1954.8,3.62878982]
[1772599346876,1.89514998,1955.4,1954.8,4.90768867]
[1772599347079,3.17371065,1955.4,1954.8,4.90768867]
[1772599347278,3.17371065,1955.4,1954.8,3.62878982]
[1772599347579,3.17371065,1955.4,1954.8,1.93578982]
[1772599347776,1.89514998,1955.3,1954.6,3.21587468]
[1772599347978,1.89514998,1955.3,1954.7,1.693]
[1772599348453,1.89514998,1955.3,1954.7,3.62878982]
[1772599349577,3.17375829,1955.3,1954.8,1.93578982]
[1772599351783,1.89514998,1955.6,1954.9,1.93578982]
[1772599353884,1.27844541,1955.5,1955.0,1.27877237]
[1772599354084,1.27844541,1955.5,1955.0,3.21456219]
[1772599354581,1.27844541,1955.5,1955.0,3.21566219]
[1772599355086,1.89514998,1955.6,1955.1,1.93578982]
[1772599355288,3.17353565,1955.6,1955.1,1.93578982]
[1772599355592,5.11413086,1955.8,1955.3,1.93578982]
[1772599355593,3.1744261,1955.8,1955.3,1.93578982]
[1772599356090,3.1744261,1955.8,1955.4,1.93578982]
[1772599356091,0.001,1955.8,1955.4,1.93578982]
[1772599357408,3.17439989,1955.8,1955.2,3.21439565]
[1772599357582,1.89514998,1955.7,1955.3,1.695]
[1772599357762,0.001,1955.8,1955.3,3.63078982]
[1772599358086,0.001,1955.8,1955.4,1.93578982]
[1772599359692,0.001,1955.8,1955.4,3.21429892]
[1772599359988,0.001,1955.8,1955.4,1.93578982]
[1772599360558,0.001,1955.8,1955.5,1.93578982]
[1772599361089,0.001,1955.8,1955.3,4.90932841]
[1772599361563,0.001,1955.8,1955.4,1.93578982]
[1772599362099,1.27817546,1956.0,1955.5,1.93578982]
[1772599362299,1.27817546,1956.0,1955.3,4.90935913]
[1772599362300,1.89514998,1955.9,1955.3,4.90935913]
[1772599362664,3.17338442,1955.9,1955.4,1.93578982]
[1772599362865,1.89514998,1955.9,1955.4,3.63078982]
[1772599363103,1.89514998,1956.1,1955.5,1.93578982]
[1772599364169,2.61726208,1957.0,1955.5,1.93578982]
[1772599364170,7.82537665,1957.7,1956.1,1.93578982]
[1772599364396,1.89514998,1956.9,1956.3,1.93578982]
[1772599364699,1.89514998,1957.2,1956.4,3.2136471]
[1772599364993,1.89514998,1957.2,1956.5,1.93578982]
[1772599365196,3.17239021,1957.4,1956.5,1.93578982]
[1772599365864,1.89514998,1957.3,1956.5,1.93578982]
[1772599366164,1.89514998,1957.0,1956.5,1.687]
[1772599366763,1.27753078,1956.9,1956.3,1.93578982]
[1772599366970,3.17268076,1956.9,1956.2,1.687]
[1772599367172,1.89514998,1956.8,1956.2,1.687]
[1772599367479,1.89514998,1956.6,1955.9,4.90194447]
[1772599368092,1.89514998,1956.6,1956.0,1.93578982]
[1772599368706,1.89514998,1956.6,1956.1,1.27805326]
[1772599369499,5.11112315,1957.1,1956.1,1.27805326]
[1772599369500,3.23413652,1957.0,1956.2,1.78575998]
[1772599369902,4.54276756,1957.0,1956.2,1.78575998]
[1772599370885,4.54276756,1957.0,1956.3,3.06368258]
[1772599371810,3.23413652,1957.0,1956.4,1.78575998]
[1772599371992,1.27845194,1957.1,1956.4,1.78575998]
[1772599372485,1.27845194,1957.1,1956.5,3.47675998]
[1772599372683,0.001,1957.1,1956.6,1.78575998]
[1772599372888,1.27714914,1957.5,1956.8,1.78575998]
[1772599373496,3.23374427,1957.6,1956.8,1.78575998]
[1772599376209,3.23374427,1957.6,1956.9,3.06329076]
[1772599376396,3.23374427,1957.6,1957.0,1.78575998]
[1772599377726,3.23374427,1957.6,1956.8,1.78575998]
[1772599377727,1.95662551,1957.5,1956.8,1.78575998]
[1772599378023,1.95662551,1957.5,1956.8,1.694]
[1772599378214,1.27720445,1957.4,1956.8,1.694]
[1772599378410,1.95662551,1957.1,1956.3,3.06368258]
[1772599378614,1.95662551,1957.1,1956.5,3.47975998]
[1772599378918,3.23382996,1957.4,1956.6,1.78575998]
[1772599380204,3.23382996,1957.4,1956.7,1.27766136]
[1772599380386,1.27720445,1957.4,1956.8,1.78575998]
[1772599381320,1.27820093,1957.5,1956.8,1.78575998]
[1772599382116,0.001,1957.5,1956.8,1.78575998]
[1772599382926,0.001,1957.5,1957.0,1.78575998]
[1772599383119,0.001,1957.5,1957.2,1.78575998]
[1772599383919,9.75483483,1958.2,1957.2,1.78575998]
[1772599384225,1.27672413,1958.2,1957.3,1.78575998]
[1772599384815,1.95662551,1958.0,1957.2,1.27730594]
[1772599385129,1.95662551,1958.0,1957.2,3.06306592]
[1772599385349,7.72321795,1958.5,1957.2,3.06306592]
[1772599385350,1.674,1958.8,1958.0,1.78575998]
[1772599385624,0.065536,1958.9,1957.5,2.61726208]
[1772599385625,1.95662551,1958.9,1958.2,1.78575998]
[1772599385794,1.27616533,1959.0,1958.3,1.78575998]
[1772599386596,1.95662551,1959.1,1958.3,1.78575998]
[1772599386805,1.30863104,1959.4,1958.6,1.78575998]
[1772599386806,3.23254757,1959.4,1958.6,1.78575998]
[1772599387013,1.30863104,1959.7,1958.8,1.78575998]
[1772599387014,3.23237645,1959.7,1958.8,1.78575998]
[1772599387404,3.23234035,1959.7,1959.0,1.78575998]
[1772599387617,1.95662551,1959.5,1958.6,3.47975998]
[1772599387827,1.95662551,1959.5,1958.7,1.78575998]
[1772599388914,1.27590078,1959.4,1958.7,1.78575998]
[1772599389225,4.54115733,1959.4,1958.6,2.97041618]
[1772599389808,3.23252629,1959.4,1958.6,2.97041618]
[1772599390131,3.23252629,1959.4,1958.6,2.97042091]
[1772599390802,1.95662551,1959.3,1958.5,3.06221195]
[1772599390992,1.95662551,1959.3,1958.5,4.75721195]
[1772599391396,3.23265654,1959.2,1958.5,1.78575998]
[1772599391849,1.95662551,1959.0,1958.2,3.48075998]
[1772599393449,1.27622645,1958.9,1958.2,4.7574424]
[1772599393602,1.95662551,1958.8,1958.2,1.695]
[1772599394203,1.95662551,1958.8,1958.2,2.97167549]
[1772599394432,1.95662551,1958.8,1958.2,4.75743547]
[1772599394631,1.27622645,1958.9,1958.2,4.75743547]
[1772599395037,1.27622645,1958.9,1958.2,3.48075998]
[1772599395329,1.27622645,1958.9,1958.2,4.75744087]
[1772599395735,3.23285196,1958.9,1958.2,4.75744087]
[1772599395936,3.23285196,1958.9,1958.2,3.48075998]
[1772599396231,3.23285196,1958.9,1958.2,1.78575998]
[1772599396423,1.95662551,1958.8,1958.2,1.78575998]
[1772599397021,1.95662551,1958.8,1958.2,3.06243697]
[1772599397644,1.27635676,1958.7,1958.1,1.695]
[1772599397804,1.27635676,1958.7,1958.1,2.97174479]
[1772599398006,1.84307637,1958.6,1957.6,1.83163307]
[1772599398323,1.84307637,1958.6,1957.7,3.52663307]
[1772599398523,1.84307637,1958.6,1957.8,1.83163307]
[1772599399012,1.27635676,1958.7,1957.8,1.83163307]
[1772599399635,1.73604092,1959.0,1958.0,1.88479724]
[1772599400501,1.73604092,1959.0,1958.2,1.88479724]
[1772599401117,1.27609616,1959.1,1958.2,1.88479724]
[1772599402329,1.27609616,1959.1,1958.4,1.88479724]
[1772599402838,3.01212213,1959.2,1958.4,1.88479724]
[1772599403337,0.001,1958.5,1958.4,3.57979724]
[1772599403638,3.01212213,1959.2,1958.4,3.57979724]
[1772599404209,3.01212213,1959.2,1958.5,3.16128434]
[1772599404811,1.27600497,1959.3,1958.6,1.88479724]
[1772599405003,3.01204589,1959.3,1958.6,1.88479724]
[1772599405205,0.001,1959.6,1958.6,1.88479724]
[1772599405419,1.73604092,1959.5,1958.6,1.88479724]
[1772599405617,0.001,1959.6,1958.6,1.88479724]
[1772599406442,0.001,1959.6,1958.8,1.88479724]
[1772599408645,1.73704092,1959.6,1958.9,1.27622645]
[1772599408827,1.73704092,1959.6,1959.0,1.693]
[1772599409033,1.73704092,1959.6,1958.8,3.16104393]
[1772599409234,1.73604092,1959.5,1958.7,2.9693051]
[1772599409536,1.73604092,1959.5,1958.7,2.96935249]
[1772599409739,1.73604092,1959.5,1958.7,2.96935453]
[1772599410142,1.73604092,1959.5,1958.7,1.27635453]
[1772599410743,3.0119417,1959.4,1958.7,1.27635453]
[1772599411217,3.0119417,1959.4,1958.7,3.16115177]
[1772599412733,1.73604092,1959.3,1958.8,0.05035955]
[1772599413215,1.73604092,1959.3,1958.6,1.693]
[1772599413438,1.73604092,1959.3,1958.6,2.96941556]
[1772599414762,1.73604092,1959.3,1958.6,4.8542128]
[1772599415461,1.27603103,1959.2,1958.6,4.8542128]
[1772599415662,1.27603103,1959.2,1958.5,5.10593185]
[1772599415663,1.73604092,1959.1,1958.3,3.87]
[1772599415867,1.73604092,1959.1,1958.3,5.56]
[1772599416365,1.73604092,1959.1,1958.4,1.88479724]
[1772599417370,1.2761613,1959.0,1958.4,3.16129994]
[1772599417738,1.73604092,1958.9,1958.3,5.56]
[1772599417940,1.73604092,1958.9,1958.3,1.69]
[1772599419540,3.01233252,1958.8,1958.3,1.69]
[1772599420166,1.2762916,1958.8,1958.3,3.57479724]
[1772599420679,3.01233252,1958.8,1958.3,1.69]
[1772599421236,3.01233252,1958.8,1958.1,1.88479724]
[1772599421444,1.73604092,1958.7,1958.1,1.88479724]
[1772599421643,1.73604092,1958.7,1958.0,2.96580642]
[1772599421844,1.73604092,1958.7,1958.0,4.85060366]
[1772599422258,1.73604092,1958.7,1958.1,1.88479724]
[1772599423843,1.27642193,1958.6,1958.1,1.88479724]
[1772599424745,1.73604092,1958.7,1958.1,3.1615435]
[1772599426876,3.01229457,1958.9,1958.2,1.88479724]
[1772599427245,3.01216281,1959.1,1958.2,1.88479724]
[1772599428066,3.01216281,1959.1,1958.4,1.82249965]
[1772599428876,3.01216281,1959.1,1958.5,1.687]
[1772599429996,1.83076715,1959.0,1958.5,1.687]
[1772599430377,1.27622645,1958.9,1958.6,0.0011]
[1772599430774,1.83076715,1958.8,1958.6,0.0011]
[1772599430977,1.83076715,1958.8,1958.3,0.0011]
[1772599431887,3.10696432,1959.0,1958.3,1.82359965]
[1772599433390,1.83176715,1959.2,1958.5,1.82249965]
[1772599436690,1.83076715,1959.0,1958.4,1.27655126]
[1772599437494,1.83076715,1959.0,1958.4,3.09905091]
[1772599438671,3.10696929,1959.0,1958.4,3.09905091]
[1772599439791,3.10696929,1959.0,1958.5,1.82249965]
[1772599440790,1.83076715,1958.9,1958.3,0.0011]
[1772599441286,1.83076715,1958.9,1958.3,1.6841]
[1772599441494,3.10689007,1959.1,1958.4,1.82249965]
[1772599441668,0.001,1959.2,1958.4,1.82249965]
[1772599441868,1.83076715,1959.5,1958.4,1.82249965]
[1772599443091,3.10666793,1959.4,1958.7,1.82249965]
[1772599443395,0.001,1959.0,1958.7,1.82249965]
[1772599446207,0.001,1959.0,1958.8,1.2762916]
[1772599446373,0.001,1959.0,1958.7,3.09881066]